bitfinex-derivatives/quotes_ETHF0:USTF0_20241129
["timestamp","ask_amount","ask_price","bid_price","bid_amount"]
[1732893964455,0.27528,3628.8,3628.1,3.2078]
[1732893964649,3.48302,3629.6,3628.1,10.34339]
[1732893964650,4.3668,3629.0,3628.1,10.34339]
[1732893964860,0.27529,3628.7,3628.5,0.2753]
[1732893965055,0.27529,3628.7,3628.5,1.0953]
[1732893965256,3.81229336,3628.9,3628.1,4.1495]
[1732893965455,1.16087,3628.9,3628.7,0.27528]
[1732893965650,1.16087,3628.9,3628.8,0.27528]
[1732893965651,0.8856,3628.9,3628.8,0.27528]
[1732893966152,0.8856,3628.9,3628.8,1.09917]
[1732893966352,1.159,3629.0,3628.9,0.27527]
[1732893966663,0.27524,3629.3,3628.9,3.48307]
[1732893966856,0.8856,3629.6,3629.3,0.27523]
[1732893967058,1.159,3629.5,3629.4,0.27523]
[1732893967253,1.159,3629.5,3628.9,4.03169]
[1732893967957,0.27524,3629.4,3629.1,0.27525]
[1732893968161,1.159,3629.5,3629.3,0.27524]
[1732893968558,1.159,3629.5,3628.9,4.03169]
[1732893968559,1.159,3629.5,3628.9,3.2078]
[1732893968754,1.159,3629.5,3629.3,0.27524]
[1732893968958,1.159,3629.5,3629.2,0.27525]
[1732893969161,1.159,3629.5,3628.9,4.03169]
[1732893969364,1.159,3629.5,3629.3,0.27524]
[1732893969365,1.43423,3629.5,3629.3,0.27524]
[1732893970062,1.159,3629.5,3628.9,3.2078]
[1732893970269,1.159,3629.5,3629.2,0.27525]
[1732893970561,1.159,3629.5,3628.4,3.2078]
[1732893970562,6.13449336,3629.4,3628.4,3.2078]
[1732893970759,2.92669336,3628.9,3628.5,0.2753]
[1732893970968,0.8614,3628.8,3628.6,0.27529]
[1732893971265,1.159,3628.7,3628.6,0.27529]
[1732893971658,1.159,3628.7,3628.4,3.2078]
[1732893971867,4.0672,3628.6,3627.8,3.2078]
[1732893972061,4.0672,3628.6,3628.1,0.27533]
[1732893972062,3.20200336,3628.4,3628.1,0.27533]
[1732893972369,2.92669336,3628.4,3628.2,0.27532]
[1732893972557,2.92669336,3628.4,3628.3,0.27532]
[1732893972763,3.20200336,3628.4,3628.1,0.27533]
[1732893972968,3.20200336,3628.4,3627.8,4.03169]
[1732893972969,2.92669336,3628.4,3627.8,3.2078]
[1732893973169,2.92669336,3628.4,3628.1,0.27533]
[1732893973170,3.20200336,3628.4,3628.1,0.27533]
[1732893973367,2.92669336,3628.4,3627.8,4.03169]
[1732893973665,0.27532,3628.3,3628.1,0.27533]
[1732893973860,2.92669336,3628.4,3627.8,4.03169]
[1732893974570,2.92669336,3628.4,3627.9,0.27535]
[1732893974772,3.2078,3628.6,3628.5,0.2753]
[1732893975062,3.2078,3628.6,3627.8,9.03169]
[1732893975063,3.2078,3628.6,3628.0,0.8881]
[1732893975264,2.92669336,3628.1,3627.8,3.2078]
[1732893975467,2.92669336,3628.1,3628.0,0.27534]
[1732893975661,1.16,3628.1,3628.0,0.27534]
[1732893975865,0.9288,3628.5,3628.0,0.82389]
[1732893976060,0.9288,3628.5,3628.4,0.27531]
[1732893976263,2.0888,3628.5,3628.4,0.27531]
[1732893976468,2.0888,3628.5,3627.8,3.2078]
[1732893976665,2.92669336,3628.1,3627.8,4.03169]
[1732893976860,2.92669336,3628.1,3628.0,0.27534]
[1732893977063,2.92669336,3628.1,3628.0,0.27242269]
[1732893977566,2.92669336,3628.1,3627.8,3.2078]
[1732893977767,2.92669336,3628.1,3627.8,1.61]
[1732893977768,0.27535,3627.9,3627.8,1.61]
[1732893978263,0.27534,3628.0,3627.8,0.27535]
[1732893978662,0.8847,3627.9,3627.8,0.27535]
[1732893978867,0.8847,3627.9,3626.9,3.2078]
[1732893979069,0.8847,3627.9,3627.3,0.27539]
[1732893979070,2.92669336,3627.4,3627.3,0.27539]
[1732893979273,4.08669336,3627.4,3627.3,1.00539]
[1732893980171,4.06204869,3627.4,3627.3,0.27539]
[1732893980473,4.06204869,3627.4,3627.2,0.2754]
[1732893980868,3.78665869,3627.4,3626.9,3.2078]
[1732893981174,2.62665869,3627.0,3626.9,4.30711]
[1732893981768,3.78665869,3627.4,3627.3,0.27539]
[1732893982171,3.78665869,3627.4,3626.9,4.03169]
[1732893982172,3.78665869,3627.4,3626.9,3.2078]
[1732893982471,2.90207869,3627.0,3626.9,3.2078]
[1732893983165,2.90207869,3627.0,3626.0,0.68873]
[1732893983166,2.62665869,3627.0,3626.0,0.68873]
[1732893983375,2.62665869,3626.6,3626.5,0.27545]
[1732893983569,3.78665869,3626.6,3626.5,1.54545]
[1732893983765,3.78665869,3626.6,3626.5,2.36934]
[1732893984076,1.16,3626.6,3626.5,1.09934]
[1732893984478,2.90210869,3626.6,3626.5,1.09934]
[1732893984670,2.62665869,3626.6,3626.5,1.09934]
[1732893984873,1.17324103,3627.2,3626.5,1.09934]
[1732893984874,2.62665869,3627.0,3626.5,0.82389]
[1732893985077,2.62665869,3627.0,3626.6,40.8]
[1732893985078,0.27544,3626.7,3626.6,40.8]
[1732893985373,0.27545,3626.6,3626.5,0.27545]
[1732893985573,0.27545,3626.6,3624.3,0.27562]
[1732893985574,0.27558,3624.9,3624.3,0.27562]
[1732893985770,14.53725869,3626.6,3624.7,0.27559]
[1732893985771,2.62665869,3624.8,3624.7,0.27559]
[1732893985975,2.62665869,3624.8,3624.7,8.82559]
[1732893986269,2.62665869,3625.9,3624.7,13.55]
[1732893986471,2.62665869,3625.9,3624.9,3.2078]
[1732893986667,2.62665869,3625.9,3625.5,0.27552]
[1732893987278,2.62665869,3625.9,3625.3,0.27554]
[1732893987571,2.62665869,3625.9,3625.6,0.27552]
[1732893987877,2.62665869,3625.9,3625.7,0.27551]
[1732893988078,4.3678,3626.1,3624.9,3.2078]
[1732893988079,3.2078,3626.1,3625.9,0.2755]
[1732893988378,3.2078,3626.1,3625.8,0.2755]
[1732893988573,3.2078,3626.1,3626.0,0.27549]
[1732893988775,3.78665869,3626.4,3625.4,0.9051]
[1732893989074,3.2078,3626.1,3625.9,0.27549]
[1732893989378,3.2078,3626.1,3625.9,6.19]
[1732893990275,3.2078,3626.1,3626.0,0.27549]
[1732893990478,3.2078,3626.1,3626.0,0.72]
[1732893990772,2.62665869,3626.5,3626.0,0.27549]
[1732893990773,3.2078,3626.5,3626.0,0.27549]
[1732893991073,3.2078,3626.5,3625.4,0.9051]
[1732893991271,3.2078,3626.5,3626.2,0.27547]
[1732893991573,0.27547,3626.3,3625.9,0.27549]
[1732893991772,3.2078,3626.1,3625.9,2.54549]
[1732893991967,3.2078,3626.1,3625.9,2.27]
[1732893992177,3.2078,3626.1,3626.0,0.27549]
[1732893992370,0.27551,3625.9,3625.5,0.27553]
[1732893992567,3.2078,3626.1,3625.5,1.62]
[1732893992773,3.2078,3626.1,3626.0,0.27549]
[1732893994174,3.48328,3626.1,3626.0,0.27549]
[1732893994369,0.27549,3626.0,3625.4,0.9051]
[1732893994574,3.2078,3626.1,3625.4,4.6351]
[1732893994775,0.27551,3625.8,3625.4,4.6351]
[1732893994976,0.27551,3625.8,3625.5,0.27553]
[1732893995176,0.27551,3625.8,3625.6,0.27552]
[1732893995476,0.2755,3625.9,3625.6,0.94]
[1732893995781,0.27551,3625.8,3625.7,0.27551]
[1732893995990,0.27551,3625.8,3625.2,0.269]
[1732893995991,2.0678,3625.8,3624.5,3.2078]
[1732893996277,3.2078,3625.4,3624.5,10.7778]
[1732893996481,0.27555,3625.3,3624.6,0.9646]
[1732893996677,0.27555,3625.3,3625.2,0.27555]
[1732893996880,3.2078,3625.4,3625.2,6.82]
[1732893997287,3.48334,3625.4,3625.3,0.27554]
[1732893997476,3.2078,3625.4,3624.5,3.4767]
[1732893997678,3.2078,3625.4,3624.7,0.68898]
[1732893997874,3.2078,3625.4,3624.7,8.55]
[1732893998080,0.27554,3625.3,3625.0,0.27556]
[1732893998378,3.2078,3625.4,3625.0,6.55]
[1732893998573,3.2078,3625.4,3625.2,0.27555]
[1732893998574,0.27555,3625.3,3625.2,0.27555]
[1732893998885,3.2078,3625.4,3625.2,5.07]
[1732893998886,3.48334,3625.4,3625.2,5.07]
[1732893999088,0.27554,3625.3,3625.2,5.07]
[1732893999283,0.27554,3625.3,3625.0,0.27557]
[1732893999284,3.2078,3625.4,3624.5,44.96572]
[1732893999480,0.27554,3625.3,3625.0,0.27556]
[1732893999780,0.27556,3625.2,3625.1,0.27556]
[1732893999974,0.27555,3625.3,3625.1,5.17556]
[1732894000275,3.2078,3625.4,3625.1,4.9]
[1732894000276,0.27555,3625.2,3625.1,4.9]
[1732894000479,4.3538,3625.4,3625.1,4.9]
[1732894000683,0.27555,3625.2,3625.1,4.9]
[1732894000887,4.3538,3625.4,3625.1,4.9]
[1732894001483,0.27555,3625.2,3625.1,4.9]
[1732894001981,2.62665869,3625.2,3624.1,0.2687]
[1732894002285,3.2078,3624.5,3624.4,0.27561]
[1732894002483,3.2078,3624.5,3624.4,0.41561]
[1732894006091,3.2078,3624.5,3624.4,0.14]
[1732894006393,3.2078,3624.5,3624.4,0.41561]
[1732894006784,3.2078,3624.9,3624.8,0.27558]
[1732894006987,3.2078,3624.9,3624.8,41.07558]
[1732894007792,3.2078,3625.3,3624.8,42.01]
[1732894007995,3.2078,3625.3,3625.2,0.27555]
[1732894008191,3.2078,3625.3,3625.2,1.39555]
[1732894009594,0.9131,3626.1,3625.8,0.27551]
[1732894009595,3.2078,3625.9,3625.8,0.27551]
[1732894011491,3.4833,3625.9,3625.8,0.27551]
[1732894011698,3.2078,3625.9,3625.8,0.27551]
[1732894011997,3.4833,3625.9,3625.8,0.27551]
[1732894012192,0.27551,3625.8,3625.7,0.27551]
[1732894012498,1.17551,3625.8,3625.7,0.27551]
[1732894012691,2.62665869,3625.3,3623.9,0.68913]
[1732894012893,3.2078,3624.7,3624.6,0.2756]
[1732894013189,3.2078,3624.7,3624.0,0.68911]
[1732894013494,3.2078,3624.7,3624.6,0.2756]
[1732894013698,3.48339,3624.7,3624.6,0.2756]
[1732894014089,3.2078,3624.7,3624.6,0.2756]
[1732894018490,5.83445869,3624.7,3624.6,0.2756]
[1732894018894,3.2078,3624.7,3624.6,0.2756]
[1732894023393,3.2078,3625.2,3625.1,0.27556]
[1732894023803,3.48335,3625.2,3625.1,0.27556]
[1732894023994,3.48335,3625.2,3624.9,0.27557]
[1732894023995,0.27557,3625.0,3624.9,0.27557]
[1732894024399,3.2078,3625.2,3624.0,0.8908]
[1732894024702,1.60883,3625.6,3624.0,0.8908]
[1732894024703,3.2078,3624.7,3624.6,0.2756]
[1732894024901,3.2078,3624.7,3624.6,0.8756]
[1732894025400,3.2078,3624.7,3624.0,0.8908]
[1732894025606,3.2078,3624.3,3624.2,0.27563]
[1732894027193,3.2078,3624.7,3624.2,5.0]
[1732894027394,3.2078,3625.3,3625.2,0.27555]
[1732894027600,2.62665869,3625.7,3624.7,0.68898]
[1732894027802,2.62665869,3625.7,3625.5,0.27552]
[1732894027803,5.83445869,3625.7,3625.5,0.27552]
[1732894028099,5.83445869,3625.7,3625.4,0.27554]
[1732894028100,6.10997869,3625.7,3625.4,0.27554]
[1732894028407,2.07689209,3625.6,3624.4,41.3597]
[1732894028599,2.07689209,3625.0,3624.9,0.27557]
[1732894028804,3.2078,3625.1,3625.0,0.27557]
[1732894029199,2.07689209,3625.4,3624.9,0.01677945]
[1732894029504,5.0719,3626.0,3624.9,0.01677945]
[1732894029700,2.07689209,3625.8,3624.9,5.01677945]
[1732894029894,3.2078,3625.6,3624.9,0.01677945]
[1732894030201,3.2078,3625.6,3625.5,0.27553]
[1732894031001,12.83318726,3627.5,3625.7,0.27551]
[1732894031201,3.2078,3627.5,3627.4,0.27539]
[1732894031808,3.2078,3627.5,3626.6,0.68862]
[1732894031997,3.48318,3627.5,3627.3,0.27539]
[1732894032203,8.2078,3627.5,3625.8,3.2078]
[1732894032402,2.62889314,3626.6,3625.9,0.68875]
[1732894032597,1.8227,3626.5,3626.4,0.27546]
[1732894032798,3.2078,3627.3,3626.4,0.27546]
[1732894032799,3.2078,3627.3,3627.0,0.27542]
[1732894033104,0.9147,3627.2,3627.1,0.27541]
[1732894034398,0.867,3627.4,3626.7,3.2078]
[1732894034605,0.867,3627.4,3627.3,0.27539]
[1732894037103,0.8706,3627.8,3627.7,0.27536]
[1732894038408,1.7369,3627.8,3627.7,0.27536]
[1732894039000,3.2078,3627.9,3627.3,0.68848]
[1732894039303,2.62889314,3628.2,3628.1,0.27533]
[1732894039304,0.23475186,3628.2,3628.1,0.27533]
[1732894039503,1.145,3628.4,3628.2,0.27532]
[1732894039704,1.42031,3628.4,3628.2,0.27532]
[1732894040007,1.145,3628.4,3628.3,0.27532]
[1732894040305,0.27531,3628.5,3628.2,0.27532]
[1732894040605,1.145,3628.5,3627.5,3.2078]
[1732894040814,1.42031,3628.5,3628.2,0.27532]
[1732894041012,1.42031,3628.5,3627.9,0.27534]
[1732894041013,0.27533,3628.2,3627.9,0.27534]
[1732894041207,0.27533,3628.2,3627.1,3.2078]
[1732894041208,0.27534,3628.0,3627.1,3.2078]
[1732894041410,3.2078,3628.3,3627.8,0.27535]
[1732894041411,0.27534,3628.1,3627.8,0.27535]
[1732894041606,0.27533,3628.2,3627.9,0.27534]
[1732894041811,0.27533,3628.2,3628.0,0.27533]
[1732894041812,0.27532,3628.2,3628.0,0.27533]
[1732894042116,3.04459,3628.6,3628.5,0.2753]
[1732894042332,0.8723,3628.6,3628.5,0.2753]
[1732894042507,0.8723,3628.6,3628.1,3.2078]
[1732894042508,4.0801,3628.6,3628.1,3.2078]
[1732894042710,4.0801,3628.6,3628.5,0.2753]
[1732894042916,1.14759,3628.6,3628.5,0.2753]
[1732894043113,1.1476,3628.6,3628.4,0.27531]
[1732894043310,1.1476,3628.6,3627.6,3.2078]
[1732894043311,3.2078,3628.5,3627.6,3.2078]
[1732894043514,0.27534,3628.0,3627.8,0.27535]
[1732894043816,5.83669314,3628.1,3628.0,0.27534]
[1732894044017,0.27531,3628.4,3627.8,0.68839]
[1732894044018,3.2078,3628.4,3627.8,0.68839]
[1732894044222,3.2078,3628.4,3627.6,3.2078]
[1732894044416,3.2078,3628.4,3628.3,0.27532]
[1732894044922,0.8723,3628.6,3628.5,0.2753]
[1732894045119,0.8723,3628.6,3628.5,1.0253]
[1732894046310,0.8723,3628.6,3628.5,0.2753]
[1732894047017,0.8723,3628.6,3628.5,1.8453]
[1732894048214,0.8929,3629.0,3628.5,1.57]
[1732894048414,1.8058,3629.0,3628.9,0.27527]
[1732894049617,1.8058,3629.0,3628.8,0.27527]
[1732894049812,0.2752,3629.8,3628.9,3.2078]
[1732894050018,0.27525,3629.2,3629.0,0.27526]
[1732894050325,2.62889314,3629.4,3629.0,0.41526]
[1732894050620,0.27526,3629.1,3629.0,0.14]
[1732894050827,0.9414,3629.3,3629.0,0.14]
[1732894050828,0.27525,3629.2,3629.0,0.14]
[1732894051020,0.27525,3629.2,3629.1,0.27525]
[1732894051327,0.9414,3629.3,3629.2,0.27525]
[1732894051527,0.9414,3629.3,3629.2,1.59525]
[1732894051724,1.21664,3629.3,3629.2,1.59525]
[1732894052025,0.9414,3629.3,3628.7,0.68821]
[1732894052228,0.27526,3629.1,3629.0,0.27526]
[1732894052526,3.2078,3629.1,3629.0,1.6]
[1732894052823,3.2078,3629.1,3629.0,0.3969]
[1732894052824,3.48306,3629.1,3629.0,0.3969]
[1732894053024,3.48306,3629.1,3627.4,1.6244]
[1732894053025,10.42835699,3629.1,3627.4,3.2078]
[1732894053216,10.42835699,3629.1,3627.4,5.37538]
[1732894053217,2.49592699,3627.6,3627.4,5.37538]
[1732894053416,0.9645,3627.5,3627.4,5.37538]
[1732894053616,0.9645,3627.5,3626.6,7.66]
[1732894053617,1.9177,3627.5,3626.6,0.68862]
[1732894053819,0.27539,3627.4,3626.6,0.68862]
[1732894054022,5.1255,3627.5,3626.6,0.68862]
[1732894054023,5.40088,3627.5,3627.2,0.2754]
[1732894054222,5.40088,3627.5,3626.7,0.6886]
[1732894054223,1.9177,3627.5,3626.7,0.6886]
[1732894054423,1.9177,3627.5,3627.4,0.27539]
[1732894054924,5.1255,3627.5,3627.4,0.27539]
[1732894055125,5.1255,3627.5,3626.9,3.2078]
[1732894055329,2.6262699,3627.3,3626.9,3.2078]
[1732894055523,0.2754,3627.2,3627.0,0.27542]
[1732894055825,3.48321,3627.1,3626.3,3.89647]
[1732894056025,3.2078,3627.1,3626.4,0.68866]
[1732894056221,3.2078,3627.1,3627.0,0.27542]
[1732894056421,1.9177,3627.5,3627.4,0.27539]
[1732894056622,2.6262699,3628.1,3627.1,3.2078]
[1732894056623,3.2078,3628.0,3627.1,3.2078]
[1732894056827,3.2078,3628.0,3627.9,0.27535]
[1732894057225,3.2078,3628.0,3627.9,1e-08]
[1732894057226,4.1759,3628.0,3627.9,1e-08]
[1732894057530,0.9681,3628.0,3627.9,0.27535001]
[1732894058824,4.45124,3628.0,3627.9,1e-08]
[1732894059023,4.45124,3628.0,3627.9,0.27535001]
[1732894059621,0.68824,3628.6,3627.9,0.27535001]
[1732894059622,3.2078,3628.8,3627.9,0.93000001]
[1732894059827,3.2078,3628.8,3628.7,0.27529]
[1732894061727,2.79,3629.4,3628.3,0.6883]
[1732894061728,0.50780842,3629.3,3629.1,0.27525]
[1732894062030,0.27524,3629.3,3629.1,0.27525]
[1732894062227,0.27525,3629.2,3629.0,0.27526]
[1732894062527,0.27525,3629.2,3628.5,3.2078]
[1732894062528,6.27337395,3629.4,3628.5,3.2078]
[1732894062729,0.27525,3629.2,3629.0,0.27526]
[1732894062933,6.27337395,3629.4,3628.5,3.2078]
[1732894062934,5.33337395,3629.4,3628.5,3.2078]
[1732894063131,0.27527,3629.0,3628.6,0.27529]
[1732894063336,0.27526,3629.1,3628.9,0.27527]
[1732894063531,0.9166,3629.3,3628.5,3.2078]
[1732894063834,0.9166,3629.3,3628.9,0.27527]
[1732894063835,0.27526,3629.1,3628.9,0.27527]
[1732894064029,0.9166,3629.3,3628.8,0.27528]
[1732894064030,0.27527,3628.9,3628.8,0.27528]
[1732894064236,0.27528,3628.8,3628.5,3.4831]
[1732894064428,0.9166,3629.3,3628.6,0.27529]
[1732894064629,0.27527,3629.0,3628.6,0.27529]
[1732894064936,1.158,3629.2,3628.5,3.2078]
[1732894065127,0.27528,3628.8,3628.5,7.0831]
[1732894065327,0.27527,3628.9,3628.6,0.27529]
[1732894065532,1.158,3629.2,3628.7,0.27528]
[1732894065533,0.27527,3629.0,3628.7,0.27528]
[1732894065933,0.27526,3629.0,3628.7,0.27528]
[1732894066132,0.27527,3628.9,3628.7,0.27528]
[1732894066531,1.158,3629.2,3628.5,3.2078]
[1732894066726,1.158,3629.2,3628.7,0.27528]
[1732894066939,1.158,3629.2,3628.6,0.27528]
[1732894067141,0.27527,3628.9,3628.7,0.27528]
[1732894067433,1.158,3629.2,3628.7,1.68]
[1732894067738,0.27524,3629.3,3629.1,0.27525]
[1732894068148,6.49137395,3629.4,3628.5,3.2078]
[1732894068328,0.27526,3628.8,3628.6,0.27526]
[1732894068635,6.49137395,3629.4,3628.6,0.27526]
[1732894068636,0.27525,3628.9,3628.7,0.27526]
[1732894068834,0.27524,3629.0,3628.7,2.76]
[1732894069032,0.27524,3628.9,3628.8,0.27525]
[1732894069340,3.008,3629.4,3628.8,0.63]
[1732894069537,0.27523,3629.2,3629.0,0.27523]
[1732894069734,0.27524,3628.9,3628.8,0.27525]
[1732894070042,0.27524,3628.9,3628.8,1.05]
[1732894070236,0.27524,3629.0,3628.8,1.32525]
[1732894070738,6.2158,3629.4,3628.8,1.32525]
[1732894070739,0.27524,3628.9,3628.8,1.32525]
[1732894071235,0.27524,3628.9,3628.7,0.27525]
[1732894071441,0.68804,3629.3,3628.5,3.2078]
[1732894071633,0.27525,3628.8,3628.5,11.4678]
[1732894071941,0.68804,3629.3,3628.5,11.4678]
[1732894072143,0.27527,3628.6,3628.5,11.4678]
[1732894073131,0.68804,3629.3,3628.5,11.4678]
[1732894073331,0.68804,3629.3,3628.5,11.74307]
[1732894073538,0.27523,3629.1,3628.5,11.4678]
[1732894073735,6.2158,3629.4,3628.5,11.4678]
[1732894073736,0.68804,3629.3,3628.5,11.4678]
[1732894073940,5.0578,3629.4,3628.5,11.4678]
[1732894074237,0.27527,3628.6,3628.5,11.4678]
[1732894075634,0.27527,3628.6,3628.5,3.2078]
[1732894075834,2.6262699,3628.8,3628.0,3.2078]
[1732894075835,0.2753,3628.1,3628.0,3.2078]
[1732894076035,0.27529,3628.0,3627.9,1e-08]
[1732894076236,0.27529,3628.0,3627.9,4.62000001]
[1732894076735,3.71630749,3628.0,3627.9,1e-08]
[1732894078339,3.44101749,3628.0,3627.2,3.2078]
[1732894078541,0.27534,3627.3,3627.2,3.2078]
[1732894078735,0.68827,3627.8,3627.2,3.2078]
[1732894078931,0.27529,3627.9,3627.7,0.2753]
[1732894079136,0.27528,3628.1,3627.7,6.29]
[1732894079339,0.27529,3628.0,3627.8,0.2753]
[1732894079937,0.27529,3628.0,3627.6,3.2078]
[1732894080137,0.27529,3628.0,3627.8,0.27529]
[1732894080340,0.9086,3628.3,3627.6,3.2078]
[1732894080544,0.9701,3628.5,3628.0,3.2078]
[1732894080746,0.27526,3628.4,3628.1,0.27528]
[1732894080948,0.9701,3628.5,3628.1,7.57]
[1732894081241,1.24535,3628.5,3628.3,0.27526]
[1732894081442,1.24535,3628.5,3628.3,3.90526]
[1732894082145,0.9642,3628.7,3628.3,3.63]
[1732894082641,0.27524,3628.6,3628.4,0.27525]
[1732894082847,0.9642,3628.7,3628.4,4.22]
[1732894083641,0.22772838,3628.9,3628.4,4.22]
[1732894083947,0.27523,3628.7,3628.5,0.27524]
[1732894084150,5.2647,3629.0,3628.5,8.05]
[1732894084447,4.34769125,3629.0,3628.5,8.05]
[1732894084749,1.64103,3629.5,3629.0,0.68803]
[1732894084750,0.22588555,3629.5,3629.0,0.68803]
[1732894085049,0.9129,3629.7,3629.2,3.2078]
[1732894085251,0.9129,3629.7,3629.2,8.7278]
[1732894085540,0.9129,3629.7,3629.6,0.27516]
[1732894085740,0.9701,3629.8,3629.7,0.27516]
[1732894085941,4.39581,3630.3,3630.1,0.27512]
[1732894086241,4.39581,3630.3,3629.6,0.6879]
[1732894086242,4.1207,3630.3,3630.2,0.27512]
[1732894086446,4.39581,3630.3,3630.2,0.27512]
[1732894086645,4.1207,3630.3,3630.1,0.27512]
[1732894086836,4.1207,3630.3,3629.6,0.6879]
[1732894087144,4.1207,3630.3,3629.6,8.6579]
[1732894087353,4.1207,3630.3,3630.2,0.27512]
[1732894087544,4.39581,3630.3,3630.2,0.27512]
[1732894087843,4.1207,3630.3,3629.7,3.8957]
[1732894088041,4.1207,3630.3,3630.2,0.27512]
[1732894088249,4.1207,3630.3,3629.7,3.8957]
[1732894088548,4.1207,3630.3,3629.7,11.1878]
[1732894088549,3.48291,3630.3,3629.7,11.1878]
[1732894088745,3.2078,3630.3,3629.8,0.27514]
[1732894088943,3.2078,3630.3,3629.8,6.57]
[1732894089146,0.27513,3630.1,3629.8,6.84514]
[1732894089444,3.2078,3630.3,3629.8,6.57]
[1732894089646,3.48291,3630.3,3630.1,0.27512]
[1732894089846,3.2078,3630.3,3630.1,0.27512]
[1732894090446,3.48291,3630.3,3630.1,0.27512]
[1732894090646,0.27512,3630.2,3630.1,0.27512]
[1732894090838,3.48291,3630.3,3630.1,0.27512]
[1732894091044,3.48291,3630.3,3629.7,3.2078]
[1732894091245,3.48291,3630.3,3629.7,11.3578]
[1732894091448,3.48291,3630.3,3630.0,0.27513]
[1732894091748,3.48291,3630.3,3629.8,0.27514]
[1732894091749,3.2078,3630.3,3629.8,0.27514]
[1732894091947,3.2078,3630.3,3629.8,0.8]
[1732894092145,0.27514,3629.9,3629.8,1.72]
[1732894092353,3.2078,3630.3,3629.8,1.72]
[1732894092554,0.27513,3630.1,3629.8,1.99514]
[1732894092845,2.62565811,3630.1,3629.2,3.2078]
[1732894093047,2.62565811,3630.1,3629.2,8.8578]
[1732894093252,0.27515,3629.9,3629.2,8.8578]
[1732894093548,0.27515,3629.9,3629.6,0.27516]
[1732894093754,1.144,3630.2,3629.6,0.27516]
[1732894093755,0.27515,3629.8,3629.6,0.27516]
[1732894094248,0.27515,3629.8,3629.2,3.2078]
[1732894094249,0.27514,3630.0,3629.8,0.27514]
[1732894094649,0.27514,3630.0,3629.8,2.13514]
[1732894095050,1.144,3630.2,3629.8,2.13514]
[1732894095051,0.27514,3629.9,3629.8,2.13514]
[1732894095243,0.27514,3629.9,3629.8,0.27514]
[1732894095443,1.144,3630.2,3629.3,0.68797]
[1732894095655,1.144,3630.2,3630.1,0.27513]
[1732894095948,1.14255729,3630.5,3630.0,3.2078]
[1732894095949,0.27511,3630.4,3630.0,3.2078]
[1732894096145,1.14255729,3630.5,3630.2,0.27511]
[1732894096146,0.27511,3630.3,3630.2,0.27511]
[1732894096349,0.27511,3630.4,3630.2,0.27511]
[1732894096848,0.27511,3630.3,3630.2,0.27511]
[1732894097051,6.9760154,3630.5,3629.6,3.2078]
[1732894097354,6.9760154,3630.5,3629.2,3.2078]
[1732894097355,3.2078,3630.1,3629.2,3.2078]
[1732894097546,3.2078,3630.1,3629.5,0.27515]
[1732894097547,0.27514,3629.6,3629.5,0.27515]
[1732894097749,0.27513,3629.7,3629.5,1.61515]
[1732894097946,0.27512,3629.8,3629.6,0.27513]
[1732894098255,3.2078,3630.1,3629.2,3.2078]
[1732894098454,3.2078,3630.1,3629.0,0.68797]
[1732894098455,2.21949996,3629.4,3628.5,3.2078]
[1732894098660,0.27519,3628.9,3628.5,10.5678]
[1732894098957,3.2078,3629.2,3628.5,10.5678]
[1732894098958,2.21949996,3629.0,3628.5,10.5678]
[1732894099155,0.27521,3628.6,3628.5,7.36]
[1732894099346,2.90746996,3629.0,3628.5,1.55]
[1732894099553,0.27521,3628.6,3628.5,1.55]
[1732894101249,0.27521,3628.6,3628.0,3.2078]
[1732894101250,0.27525,3628.1,3628.0,3.2078]
[1732894101448,3.2078,3628.1,3626.8,3.2078]
[1732894101652,3.2078,3628.1,3627.2,0.27531]
[1732894101653,2.61716,3628.0,3627.2,0.27531]
[1732894101848,0.2753,3627.4,3627.2,6.51]
[1732894102048,0.2753,3627.4,3627.2,6.78532]
[1732894102362,0.27531,3627.4,3627.2,6.51]
[1732894102555,0.2753,3627.4,3627.2,6.51]
[1732894102864,3.442946,3628.1,3627.2,6.51]
[1732894102865,0.235146,3628.1,3627.2,17.34221594]
[1732894103150,0.9583,3628.9,3627.8,3.2078]
[1732894103346,0.502992,3629.0,3628.3,3.2078]
[1732894103544,0.27519,3629.0,3628.7,0.2752]
[1732894103747,1.144,3629.1,3628.3,3.2078]
[1732894103955,0.27517,3629.2,3628.9,0.27518]
[1732894104248,1.144,3629.7,3629.1,3.2078]
[1732894104455,1.144,3629.7,3629.1,5.4378]
[1732894104456,0.27514,3629.6,3629.1,5.4378]
[1732894104749,1.144,3629.7,3629.1,5.4378]
[1732894104750,0.27515,3629.5,3629.2,0.27516]
[1732894104951,0.27513,3629.8,3629.5,0.27514]
[1732894105159,3.2078,3629.9,3629.4,0.27515]
[1732894105357,0.27514,3629.7,3629.2,0.27517]
[1732894105553,0.27514,3629.6,3629.3,0.27516]
[1732894105754,0.27516,3629.4,3629.3,1.56]
[1732894107452,0.27517,3629.2,3628.9,0.27519]
[1732894107659,0.27517,3629.2,3628.9,4.70519]
[1732894107859,0.27517,3629.3,3629.0,0.27518]
[1732894108053,0.27517,3629.2,3629.0,5.07]
[1732894108657,0.27516,3629.3,3629.0,5.34518]
[1732894109258,0.27517,3629.1,3629.0,5.07]
[1732894109654,0.27517,3629.1,3627.6,3.2078]
[1732894109655,5.83221594,3629.1,3627.6,3.2078]
[1732894109870,0.27528,3627.8,3627.6,10.9678]